[Event "*** Titled Tuesday 3|2 Blitz"]
[Site "Chess.com"]
[Date "2017.05.02"]
[Round "10"]
[White "XiaoKangZhong"]
[Black "Lawliet64"]
[Result "1/2-1/2"]
[WhiteElo "2016"]
[BlackElo "2008"]
[TimeControl "180+2"]
[EndTime "15:10:54 PDT"]
[Termination "Game drawn by agreement"]

1. e4 {[%clk 0:02:45.5]} 1... c5 {[%clk 0:02:58.5]} 2. Nf3 {[%clk 0:02:46.1]}
2... d6 {[%clk 0:02:57.5]} 3. Bb5+ {[%clk 0:02:46.3]} 3... Bd7 {[%clk
0:02:57.2]} 4. Bxd7+ {[%clk 0:02:46.4]} 4... Qxd7 {[%clk 0:02:57.7]} 5. O-O
{[%clk 0:02:43.9]} 5... Nc6 {[%clk 0:02:58.3]} 6. c4 {[%clk 0:02:44.7]} 6... e6
{[%clk 0:02:57.8]} 7. Nc3 {[%clk 0:02:44.9]} 7... Nf6 {[%clk 0:02:56.4]} 8. d4
{[%clk 0:02:40.3]} 8... cxd4 {[%clk 0:02:56.9]} 9. Nxd4 {[%clk 0:02:39.2]} 9...
Be7 {[%clk 0:02:58.4]} 10. f3 {[%clk 0:02:39.6]} 10... O-O {[%clk 0:02:56.4]}
11. Be3 {[%clk 0:02:39.9]} 11... a6 {[%clk 0:02:58.3]} 12. a4 {[%clk 0:02:40.1]}
12... Rac8 {[%clk 0:02:59.6]} 13. b3 {[%clk 0:02:41]} 13... h6 {[%clk
0:02:54.5]} 14. Qd2 {[%clk 0:02:41.5]} 14... d5 {[%clk 0:02:54.3]} 15. cxd5
{[%clk 0:02:23.6]} 15... exd5 {[%clk 0:02:54.9]} 16. exd5 {[%clk 0:02:19.4]}
16... Nxd5 {[%clk 0:02:23.8]} 17. Nxd5 {[%clk 0:02:15.6]} 17... Qxd5 {[%clk
0:02:24.2]} 18. Nxc6 {[%clk 0:02:16.2]} 18... Qxc6 {[%clk 0:02:25]} 19. Rac1
{[%clk 0:02:16.7]} 19... Qg6 {[%clk 0:02:24.9]} 20. Rxc8 {[%clk 0:01:48.5]}
20... Rxc8 {[%clk 0:02:17.5]} 21. Qd7 {[%clk 0:01:49.2]} 21... Rc2 {[%clk
0:02:11.3]} 1/2-1/2

[Event "*** Titled Tuesday 3|2 Blitz"]
[Site "Chess.com"]
[Date "2017.05.02"]
[Round "10"]
[White "eldur16"]
[Black "matiss90"]
[Result "1-0"]
[WhiteElo "2451"]
[BlackElo "2359"]
[TimeControl "180+2"]
[EndTime "15:11:08 PDT"]
[Termination "eldur16 won by resignation"]

1. e4 {[%clk 0:03:02]} 1... c5 {[%clk 0:03:00.4]} 2. b3 {[%clk 0:03:02.3]} 2...
Nf6 {[%clk 0:03:00.6]} 3. e5 {[%clk 0:03:02.5]} 3... Nd5 {[%clk 0:03:01.5]} 4.
Nf3 {[%clk 0:03:03.4]} 4... Nc6 {[%clk 0:03:02.2]} 5. Bb2 {[%clk 0:03:03.4]}
5... e6 {[%clk 0:03:02.2]} 6. Na3 {[%clk 0:03:03.3]} 6... Be7 {[%clk 0:02:53]}
7. Bb5 {[%clk 0:02:58.1]} 7... Qc7 {[%clk 0:02:35.3]} 8. O-O {[%clk 0:02:53.1]}
8... O-O {[%clk 0:02:34]} 9. Re1 {[%clk 0:02:52.2]} 9... a6 {[%clk 0:02:30.1]}
10. Bf1 {[%clk 0:02:50.3]} 10... b5 {[%clk 0:02:30.6]} 11. c4 {[%clk 0:02:49.9]}
11... bxc4 {[%clk 0:02:25]} 12. Nxc4 {[%clk 0:02:50.5]} 12... Bb7 {[%clk
0:02:23.5]} 13. d4 {[%clk 0:02:48.1]} 13... cxd4 {[%clk 0:02:23.9]} 14. Nxd4
{[%clk 0:02:48.3]} 14... Nxd4 {[%clk 0:02:24.2]} 15. Bxd4 {[%clk 0:02:43.4]}
15... Nf4 {[%clk 0:02:18.8]} 16. Rc1 {[%clk 0:02:35.9]} 16... Rac8 {[%clk
0:01:55]} 17. Qg4 {[%clk 0:02:30]} 17... Nd5 {[%clk 0:01:49.6]} 18. Nd6 {[%clk
0:02:09.3]} 18... Bxd6 {[%clk 0:01:36.9]} 19. exd6 {[%clk 0:02:05.4]} 1-0

[Event "*** Titled Tuesday 3|2 Blitz"]
[Site "Chess.com"]
[Date "2017.05.02"]
[Round "10"]
[White "Msb2"]
[Black "SerGo055"]
[Result "0-1"]
[WhiteElo "2558"]
[BlackElo "2416"]
[TimeControl "180+2"]
[EndTime "15:13:49 PDT"]
[Termination "SerGo055 won by resignation"]

1. d4 {[%clk 0:02:59.5]} 1... Nf6 {[%clk 0:02:59.3]} 2. c4 {[%clk 0:02:59.9]}
2... e6 {[%clk 0:02:57.9]} 3. Nf3 {[%clk 0:03:00.4]} 3... d6 {[%clk 0:02:59]} 4.
g3 {[%clk 0:03:01.1]} 4... b6 {[%clk 0:02:57.7]} 5. Bg2 {[%clk 0:03:01.6]} 5...
Bb7 {[%clk 0:02:59.1]} 6. O-O {[%clk 0:03:03.5]} 6... Nbd7 {[%clk 0:02:59.8]} 7.
Re1 {[%clk 0:03:03.7]} 7... d5 {[%clk 0:02:55.4]} 8. cxd5 {[%clk 0:03:03.8]}
8... exd5 {[%clk 0:02:56.1]} 9. Nc3 {[%clk 0:03:05.1]} 9... Be7 {[%clk
0:02:54.6]} 10. Bf4 {[%clk 0:03:06.4]} 10... O-O {[%clk 0:02:54.8]} 11. Rc1
{[%clk 0:03:07.6]} 11... c5 {[%clk 0:02:54.4]} 12. Nb5 {[%clk 0:03:05.7]} 12...
Ne4 {[%clk 0:02:38.1]} 13. Nd2 {[%clk 0:03:00.9]} 13... Ndf6 {[%clk 0:02:29.8]}
14. Nxe4 {[%clk 0:02:46.3]} 14... dxe4 {[%clk 0:02:16.6]} 15. dxc5 {[%clk
0:02:44.4]} 15... Bxc5 {[%clk 0:02:15.7]} 16. Nd6 {[%clk 0:02:38.8]} 16... Bd5
{[%clk 0:02:03.2]} 17. Nc4 {[%clk 0:01:58.6]} 17... Rc8 {[%clk 0:01:19]} 18. Ne3
{[%clk 0:01:58]} 18... Bxa2 {[%clk 0:01:10.5]} 19. Qa4 {[%clk 0:01:57.9]} 19...
Be6 {[%clk 0:01:07.3]} 20. Qxa7 {[%clk 0:01:58.9]} 20... Nh5 {[%clk 0:01:04.1]}
21. Qa4 {[%clk 0:01:08.6]} 21... Nxf4 {[%clk 0:00:57.7]} 22. gxf4 {[%clk
0:01:10.5]} 22... Bxe3 {[%clk 0:00:52]} 23. fxe3 {[%clk 0:01:12.4]} 23... Rxc1
{[%clk 0:00:51.9]} 24. Rxc1 {[%clk 0:01:10.1]} 24... Qd2 {[%clk 0:00:53.8]} 25.
Rc3 {[%clk 0:00:56.8]} 25... Qe1+ {[%clk 0:00:53.1]} 26. Bf1 {[%clk 0:00:57.6]}
26... Bh3 {[%clk 0:00:54.5]} 0-1

[Event "*** Titled Tuesday 3|2 Blitz"]
[Site "Chess.com"]
[Date "2017.05.02"]
[Round "10"]
[White "FearlessKing64"]
[Black "Saitama_Hero"]
[Result "0-1"]
[WhiteElo "2158"]
[BlackElo "2280"]
[TimeControl "180+2"]
[EndTime "15:14:04 PDT"]
[Termination "Saitama_Hero won on time"]

1. e4 {[%clk 0:03:02]} 1... c5 {[%clk 0:02:48.9]} 2. Nf3 {[%clk 0:03:00.9]} 2...
e6 {[%clk 0:02:50.8]} 3. c4 {[%clk 0:03:01.1]} 3... a6 {[%clk 0:02:49.9]} 4. Nc3
{[%clk 0:03:00.2]} 4... Nc6 {[%clk 0:02:49.4]} 5. Be2 {[%clk 0:03:00.6]} 5...
Nf6 {[%clk 0:02:49.8]} 6. O-O {[%clk 0:03:00.7]} 6... Qc7 {[%clk 0:02:50.9]} 7.
d4 {[%clk 0:03:01.1]} 7... cxd4 {[%clk 0:02:50.7]} 8. Nxd4 {[%clk 0:03:03]} 8...
h5 {[%clk 0:02:50.7]} 9. Nxc6 {[%clk 0:02:23.9]} 9... dxc6 {[%clk 0:02:46]} 10.
f4 {[%clk 0:02:12.5]} 10... Bc5+ {[%clk 0:02:43.3]} 11. Kh1 {[%clk 0:02:13.1]}
11... e5 {[%clk 0:02:35.9]} 12. fxe5 {[%clk 0:02:06.1]} 12... Ng4 {[%clk
0:02:35.8]} 13. Bf4 {[%clk 0:02:01.4]} 13... Nf2+ {[%clk 0:02:35.9]} 14. Rxf2
{[%clk 0:01:55.6]} 14... Bxf2 {[%clk 0:02:37.8]} 15. Qf1 {[%clk 0:01:52.1]}
15... Bd4 {[%clk 0:02:31.6]} 16. e6 {[%clk 0:01:52.4]} 16... Qe7 {[%clk
0:02:28.6]} 17. exf7+ {[%clk 0:01:50.2]} 17... Qxf7 {[%clk 0:02:28.9]} 18. Rd1
{[%clk 0:00:50.8]} 18... Bxc3 {[%clk 0:02:27.9]} 19. bxc3 {[%clk 0:00:52.7]}
19... O-O {[%clk 0:02:28.8]} 20. g3 {[%clk 0:00:50.9]} 20... Be6 {[%clk
0:02:24.8]} 21. h4 {[%clk 0:00:21.3]} 21... Rae8 {[%clk 0:02:23.5]} 22. Qg2
{[%clk 0:00:21]} 22... Bxc4 {[%clk 0:02:21.3]} 23. Bf3 {[%clk 0:00:15.9]} 23...
Be6 {[%clk 0:02:15.7]} 24. Rd6 {[%clk 0:00:14]} 24... Bg4 {[%clk 0:02:15.9]} 25.
Bxg4 {[%clk 0:00:11.8]} 25... hxg4 {[%clk 0:02:17.8]} 26. e5 {[%clk 0:00:12.8]}
26... Qc4 {[%clk 0:02:14]} 27. Qd2 {[%clk 0:00:10.1]} 27... Qe4+ {[%clk
0:02:12.7]} 28. Kh2 {[%clk 0:00:10.9]} 28... Rf7 {[%clk 0:01:58]} 29. a3 {[%clk
0:00:11.1]} 29... Ref8 {[%clk 0:01:55.6]} 30. e6 {[%clk 0:00:08.9]} 30... Re7
{[%clk 0:01:54.7]} 31. Qa2 {[%clk 0:00:07.6]} 31... Kh7 {[%clk 0:01:49.3]} 32.
Bg5 {[%clk 0:00:03.1]} 32... Rf1 {[%clk 0:01:44.4]} 0-1

[Event "*** Titled Tuesday 3|2 Blitz"]
[Site "Chess.com"]
[Date "2017.05.02"]
[Round "10"]
[White "Wolverine_master"]
[Black "ehrenfeld"]
[Result "0-1"]
[WhiteElo "1941"]
[BlackElo "2374"]
[TimeControl "180+2"]
[EndTime "15:14:13 PDT"]
[Termination "ehrenfeld won on time"]

1. e4 {[%clk 0:01:44.3]} 1... d6 {[%clk 0:02:58.6]} 2. d4 {[%clk 0:01:44.2]}
2... g6 {[%clk 0:02:56.7]} 3. c4 {[%clk 0:01:45]} 3... e5 {[%clk 0:02:57]} 4. d5
{[%clk 0:01:34.7]} 4... Bg7 {[%clk 0:02:56.1]} 5. Nc3 {[%clk 0:01:36.1]} 5...
Nf6 {[%clk 0:02:47.4]} 6. h3 {[%clk 0:01:36.8]} 6... O-O {[%clk 0:02:47.7]} 7.
Nf3 {[%clk 0:01:37.7]} 7... a5 {[%clk 0:02:34.2]} 8. g4 {[%clk 0:01:38.2]} 8...
Na6 {[%clk 0:02:34.7]} 9. Be3 {[%clk 0:01:37.4]} 9... c6 {[%clk 0:02:33.2]} 10.
Rg1 {[%clk 0:01:35.2]} 10... cxd5 {[%clk 0:02:33.6]} 11. cxd5 {[%clk 0:01:28.6]}
11... Bd7 {[%clk 0:02:32.7]} 12. Be2 {[%clk 0:01:21.6]} 12... Rc8 {[%clk
0:02:30.6]} 13. Qd2 {[%clk 0:01:22.4]} 13... Nc5 {[%clk 0:02:28.9]} 14. Bxc5
{[%clk 0:01:05.9]} 14... Rxc5 {[%clk 0:02:28.6]} 15. Ng5 {[%clk 0:00:54.5]}
15... b5 {[%clk 0:02:23.2]} 16. Bd3 {[%clk 0:00:44.6]} 16... b4 {[%clk
0:02:23.3]} 17. Ne2 {[%clk 0:00:45.5]} 17... Qc7 {[%clk 0:02:16.9]} 18. Rc1
{[%clk 0:00:40.8]} 18... Rxc1+ {[%clk 0:02:16.8]} 19. Qxc1 {[%clk 0:00:41.3]}
19... Rc8 {[%clk 0:02:14.9]} 20. Qxc7 {[%clk 0:00:40.9]} 20... Rxc7 {[%clk
0:02:16]} 21. Kd2 {[%clk 0:00:42.2]} 21... Bh6 {[%clk 0:02:15.4]} 22. h4 {[%clk
0:00:19.8]} 22... Nxg4 {[%clk 0:02:14.9]} 23. Rg2 {[%clk 0:00:14.1]} 23... f6
{[%clk 0:02:05.6]} 24. f3 {[%clk 0:00:14.8]} 24... fxg5 {[%clk 0:02:04.2]} 25.
fxg4 {[%clk 0:00:16.1]} 25... gxh4+ {[%clk 0:02:05.2]} 26. Ke1 {[%clk
0:00:12.2]} 26... Be3 {[%clk 0:01:52.7]} 27. Rh2 {[%clk 0:00:03.4]} 27... Bg5
{[%clk 0:01:53]} 28. Rg2 {[%clk 0:00:03.1]} 28... Kg7 {[%clk 0:01:52.7]} 29. Ng1
{[%clk 0:00:03.9]} 29... Rc1+ {[%clk 0:01:50.2]} 30. Kf2 {[%clk 0:00:05.3]}
30... Bf4 {[%clk 0:01:48]} 31. Nh3 {[%clk 0:00:05.9]} 31... Bg3+ {[%clk
0:01:47.9]} 32. Kf3 {[%clk 0:00:05.7]} 32... h5 {[%clk 0:01:44.6]} 33. Nf2
{[%clk 0:00:04.8]} 33... Bxf2 {[%clk 0:01:41.1]} 0-1

[Event "*** Titled Tuesday 3|2 Blitz"]
[Site "Chess.com"]
[Date "2017.05.02"]
[Round "10"]
[White "pawnwonder"]
[Black "politeplayer"]
[Result "0-1"]
[WhiteElo "1819"]
[BlackElo "2052"]
[TimeControl "180+2"]
[EndTime "15:14:38 PDT"]
[Termination "politeplayer won by checkmate"]

1. e4 {[%clk 0:03:02]} 1... g6 {[%clk 0:03:01.2]} 2. d4 {[%clk 0:03:00.1]} 2...
Bg7 {[%clk 0:03:03.1]} 3. Nc3 {[%clk 0:03:00.5]} 3... d6 {[%clk 0:03:04.6]} 4.
f3 {[%clk 0:03:01.7]} 4... Nc6 {[%clk 0:03:01.1]} 5. Be3 {[%clk 0:03:02.6]} 5...
e5 {[%clk 0:03:01.8]} 6. d5 {[%clk 0:03:03.4]} 6... Nd4 {[%clk 0:03:03.3]} 7.
Nge2 {[%clk 0:03:02]} 7... c5 {[%clk 0:02:50]} 8. dxc6 {[%clk 0:03:02]} 8...
Nxc6 {[%clk 0:02:32.9]} 9. Qd2 {[%clk 0:03:02.4]} 9... Be6 {[%clk 0:02:28]} 10.
O-O-O {[%clk 0:03:01.3]} 10... Qa5 {[%clk 0:02:24.2]} 11. Kb1 {[%clk 0:02:57.5]}
11... Nge7 {[%clk 0:02:23.4]} 12. a3 {[%clk 0:02:45.9]} 12... O-O {[%clk
0:02:22.7]} 13. h4 {[%clk 0:02:45.4]} 13... b5 {[%clk 0:02:23]} 14. Na2 {[%clk
0:02:21.9]} 14... b4 {[%clk 0:02:13.5]} 15. Nxb4 {[%clk 0:02:20.5]} 15... Nxb4
{[%clk 0:02:14.2]} 16. Qxb4 {[%clk 0:02:21]} 16... Qc7 {[%clk 0:02:14.3]} 17.
Qxd6 {[%clk 0:02:18.1]} 17... Qb7 {[%clk 0:02:14.7]} 18. Qb4 {[%clk 0:02:16]}
18... Qc7 {[%clk 0:02:10.3]} 19. h5 {[%clk 0:01:58.9]} 19... Rab8 {[%clk
0:02:09.6]} 20. Qc3 {[%clk 0:01:57.6]} 20... Nc6 {[%clk 0:02:02.2]} 21. hxg6
{[%clk 0:01:14]} 21... hxg6 {[%clk 0:02:02.4]} 22. Bh6 {[%clk 0:01:13.1]} 22...
Bxh6 {[%clk 0:01:57.7]} 23. Rxh6 {[%clk 0:01:12.3]} 23... Rfc8 {[%clk
0:01:55.1]} 24. Qe3 {[%clk 0:01:03.4]} 24... Nd4 {[%clk 0:01:54.3]} 25. Rc1
{[%clk 0:00:43.1]} 25... Qc4 {[%clk 0:01:37.7]} 26. Nc3 {[%clk 0:00:26.9]} 26...
Rxb2+ {[%clk 0:00:43.7]} 27. Kxb2 {[%clk 0:00:18.4]} 27... Rb8+ {[%clk
0:00:44.4]} 28. Ka1 {[%clk 0:00:17.3]} 28... Qxf1 {[%clk 0:00:45.9]} 29. Rxf1
{[%clk 0:00:17.2]} 29... Nxc2# {[%clk 0:00:46.7]} 0-1

[Event "*** Titled Tuesday 3|2 Blitz"]
[Site "Chess.com"]
[Date "2017.05.02"]
[Round "10"]
[White "JSMastropiero"]
[Black "TricksOnly"]
[Result "0-1"]
[WhiteElo "2205"]
[BlackElo "2383"]
[TimeControl "180+2"]
[EndTime "15:15:17 PDT"]
[Termination "TricksOnly won by resignation"]

1. d4 {[%clk 0:03:02]} 1... d5 {[%clk 0:02:59.8]} 2. c4 {[%clk 0:03:03]} 2... e5
{[%clk 0:03:00.3]} 3. e3 {[%clk 0:03:00.9]} 3... exd4 {[%clk 0:02:59.8]} 4. exd4
{[%clk 0:03:01.7]} 4... Nf6 {[%clk 0:03:00.8]} 5. Nc3 {[%clk 0:03:02.3]} 5...
Bb4 {[%clk 0:03:01.3]} 6. Bd3 {[%clk 0:03:02]} 6... O-O {[%clk 0:03:02]} 7. Ne2
{[%clk 0:03:02.9]} 7... dxc4 {[%clk 0:02:58.5]} 8. Bxc4 {[%clk 0:03:03.6]} 8...
c6 {[%clk 0:02:59.4]} 9. O-O {[%clk 0:03:02.6]} 9... Nbd7 {[%clk 0:02:59.5]} 10.
Bg5 {[%clk 0:02:45.4]} 10... Nb6 {[%clk 0:02:56]} 11. Bb3 {[%clk 0:02:43.6]}
11... Qd6 {[%clk 0:02:38.2]} 12. h3 {[%clk 0:02:35.4]} 12... Bf5 {[%clk
0:02:23.6]} 13. a3 {[%clk 0:02:33.2]} 13... Bxc3 {[%clk 0:02:18.4]} 14. bxc3
{[%clk 0:02:35.1]} 14... Ne4 {[%clk 0:02:17]} 15. Bf4 {[%clk 0:02:26.7]} 15...
Qg6 {[%clk 0:02:15.9]} 16. Kh2 {[%clk 0:02:15.4]} 16... Rad8 {[%clk 0:02:10.6]}
17. f3 {[%clk 0:02:09]} 17... Nd6 {[%clk 0:02:07]} 18. a4 {[%clk 0:01:47]} 18...
Rfe8 {[%clk 0:02:03.3]} 19. Bxd6 {[%clk 0:01:40.6]} 19... Qxd6+ {[%clk
0:01:56.9]} 20. Kh1 {[%clk 0:01:41.1]} 20... Re3 {[%clk 0:01:55.1]} 21. Qd2
{[%clk 0:01:38.2]} 21... Rde8 {[%clk 0:01:52.3]} 22. Ng1 {[%clk 0:01:30.6]}
22... Rd3 {[%clk 0:01:47.2]} 23. Qc1 {[%clk 0:01:26.7]} 23... h6 {[%clk
0:01:38.9]} 24. Re1 {[%clk 0:01:15.9]} 24... Rxe1 {[%clk 0:01:10.2]} 25. Qxe1
{[%clk 0:01:15.4]} 25... Nd5 {[%clk 0:01:11.5]} 26. Rc1 {[%clk 0:00:54]} 26...
Re3 {[%clk 0:01:08.6]} 27. Qd2 {[%clk 0:00:53.8]} 27... Qe7 {[%clk 0:01:02.1]}
28. c4 {[%clk 0:00:35.6]} 28... Nf4 {[%clk 0:00:56.8]} 29. Bc2 {[%clk
0:00:33.7]} 29... Bxc2 {[%clk 0:00:49.7]} 30. Qxc2 {[%clk 0:00:33.6]} 30... Qg5
{[%clk 0:00:44.5]} 31. Qf2 {[%clk 0:00:29.9]} 31... Nd3 {[%clk 0:00:42.4]} 32.
Qd2 {[%clk 0:00:24.1]} 32... Nxc1 {[%clk 0:00:39.9]} 33. Qxc1 {[%clk 0:00:25.7]}
33... Rd3 {[%clk 0:00:35.8]} 34. Qb2 {[%clk 0:00:24.2]} 34... Rd2 {[%clk
0:00:32.4]} 0-1

[Event "*** Titled Tuesday 3|2 Blitz"]
[Site "Chess.com"]
[Date "2017.05.02"]
[Round "10"]
[White "roldieyi"]
[Black "heartofatiger"]
[Result "0-1"]
[WhiteElo "2097"]
[BlackElo "1983"]
[TimeControl "180+2"]
[EndTime "15:15:24 PDT"]
[Termination "heartofatiger won by resignation"]

1. d4 {[%clk 0:02:54.7]} 1... d5 {[%clk 0:03:00.4]} 2. Nf3 {[%clk 0:02:55.5]}
2... e6 {[%clk 0:03:01.5]} 3. c4 {[%clk 0:02:55.8]} 3... Nf6 {[%clk 0:03:02.6]}
4. Bg5 {[%clk 0:02:55.9]} 4... Be7 {[%clk 0:03:03.7]} 5. Nc3 {[%clk 0:02:56.2]}
5... O-O {[%clk 0:03:04.6]} 6. c5 {[%clk 0:02:56.5]} 6... b6 {[%clk 0:03:04.2]}
7. b4 {[%clk 0:02:56.9]} 7... a5 {[%clk 0:03:04.9]} 8. a3 {[%clk 0:02:57.5]}
8... axb4 {[%clk 0:03:05.6]} 9. axb4 {[%clk 0:02:57.8]} 9... Rxa1 {[%clk
0:03:07.1]} 10. Qxa1 {[%clk 0:02:58.5]} 10... Nc6 {[%clk 0:02:54]} 11. Qb2
{[%clk 0:02:50.2]} 11... bxc5 {[%clk 0:02:51.2]} 12. bxc5 {[%clk 0:02:50.4]}
12... Ba6 {[%clk 0:02:52.1]} 13. e3 {[%clk 0:02:47.2]} 13... Bxf1 {[%clk
0:02:52.2]} 14. Kxf1 {[%clk 0:02:48]} 14... Qa8 {[%clk 0:02:49.4]} 15. g3 {[%clk
0:02:37.5]} 15... Rb8 {[%clk 0:02:48.8]} 16. Qd2 {[%clk 0:02:28.6]} 16... Ne4
{[%clk 0:02:43.5]} 17. Nxe4 {[%clk 0:02:27.5]} 17... dxe4 {[%clk 0:02:44.6]} 18.
Ne5 {[%clk 0:01:41.7]} 18... Bxg5 {[%clk 0:02:38]} 19. Nxc6 {[%clk 0:01:41.3]}
19... Rb1+ {[%clk 0:02:19.9]} 20. Kg2 {[%clk 0:01:40.9]} 20... Rxh1 {[%clk
0:02:21.2]} 21. Kxh1 {[%clk 0:01:41.3]} 21... Qxc6 {[%clk 0:02:10.2]} 22. Qc2
{[%clk 0:01:37.9]} 22... f5 {[%clk 0:02:09.1]} 23. h4 {[%clk 0:01:37.6]} 23...
Be7 {[%clk 0:02:07.6]} 24. Qb3 {[%clk 0:01:37.7]} 24... Kf7 {[%clk 0:02:08.2]}
25. Kg2 {[%clk 0:01:37.2]} 25... Qd5 {[%clk 0:02:08.3]} 26. Qb8 {[%clk
0:01:37.4]} 26... c6 {[%clk 0:02:08.9]} 27. Qh8 {[%clk 0:01:37.2]} 27... h6
{[%clk 0:02:09]} 28. Qh7 {[%clk 0:01:36.9]} 28... Qd8 {[%clk 0:01:59]} 29. h5
{[%clk 0:01:35.8]} 29... Qg8 {[%clk 0:01:59.6]} 30. Qg6+ {[%clk 0:01:36.1]}
30... Kf8 {[%clk 0:02:00.6]} 31. g4 {[%clk 0:01:32]} 31... Qf7 {[%clk
0:01:59.3]} 32. Qh7 {[%clk 0:01:32.3]} 32... fxg4 {[%clk 0:01:57]} 33. Qxe4
{[%clk 0:01:32.5]} 33... Qxh5 {[%clk 0:01:51.5]} 34. Qxc6 {[%clk 0:01:18.7]}
34... Qd5+ {[%clk 0:01:51.7]} 35. Qxd5 {[%clk 0:01:18]} 35... exd5 {[%clk
0:01:52.4]} 36. Kg3 {[%clk 0:01:19.4]} 36... h5 {[%clk 0:01:52.7]} 37. Kf4
{[%clk 0:01:19.4]} 37... Kf7 {[%clk 0:01:42.7]} 38. e4 {[%clk 0:01:19.5]} 38...
Ke6 {[%clk 0:01:42]} 39. e5 {[%clk 0:01:17.7]} 39... g5+ {[%clk 0:01:33.6]} 40.
Kg3 {[%clk 0:01:17.9]} 40... Bxc5 {[%clk 0:01:27.1]} 41. dxc5 {[%clk 0:01:16.5]}
41... Kxe5 {[%clk 0:01:28.1]} 42. f3 {[%clk 0:01:18.4]} 42... gxf3 {[%clk
0:01:27.4]} 43. Kxf3 {[%clk 0:01:19]} 43... d4 {[%clk 0:01:28]} 44. c6 {[%clk
0:01:17.8]} 44... Kd6 {[%clk 0:01:28.7]} 45. Ke4 {[%clk 0:01:19.7]} 45... Kxc6
{[%clk 0:01:29.3]} 46. Kxd4 {[%clk 0:01:20.8]} 46... Kd6 {[%clk 0:01:30.4]} 47.
Ke4 {[%clk 0:01:21.5]} 47... Ke6 {[%clk 0:01:31.1]} 48. Kf3 {[%clk 0:01:22.5]}
0-1

[Event "*** Titled Tuesday 3|2 Blitz"]
[Site "Chess.com"]
[Date "2017.05.02"]
[Round "10"]
[White "Enzy63"]
[Black "Olkaa"]
[Result "0-1"]
[WhiteElo "2045"]
[BlackElo "2446"]
[TimeControl "180+2"]
[EndTime "15:15:39 PDT"]
[Termination "Olkaa won on time"]

1. d4 {[%clk 0:03:02]} 1... Nf6 {[%clk 0:03:00.3]} 2. Nf3 {[%clk 0:03:02.7]}
2... g6 {[%clk 0:03:01.2]} 3. c4 {[%clk 0:03:02.9]} 3... Bg7 {[%clk 0:03:01.8]}
4. g3 {[%clk 0:03:04.4]} 4... O-O {[%clk 0:03:02.1]} 5. Bg2 {[%clk 0:03:05.8]}
5... d6 {[%clk 0:03:03.8]} 6. Nc3 {[%clk 0:03:06.4]} 6... Nbd7 {[%clk
0:03:04.4]} 7. O-O {[%clk 0:03:06.7]} 7... e5 {[%clk 0:03:05.1]} 8. e4 {[%clk
0:03:07.7]} 8... exd4 {[%clk 0:03:02.7]} 9. Nxd4 {[%clk 0:03:08]} 9... Re8
{[%clk 0:03:04.3]} 10. h3 {[%clk 0:03:06.2]} 10... a6 {[%clk 0:03:04.9]} 11. Be3
{[%clk 0:03:01.4]} 11... Rb8 {[%clk 0:03:05.6]} 12. b3 {[%clk 0:03:02.4]} 12...
c5 {[%clk 0:02:57.7]} 13. Nde2 {[%clk 0:03:02.9]} 13... b5 {[%clk 0:02:55.3]}
14. Qxd6 {[%clk 0:03:00.3]} 14... b4 {[%clk 0:02:35.1]} 15. Na4 {[%clk
0:02:59.8]} 15... Nxe4 {[%clk 0:02:32.9]} 16. Bxe4 {[%clk 0:02:58.8]} 16... Rxe4
{[%clk 0:02:33.4]} 17. Nxc5 {[%clk 0:02:55.2]} 17... Bf8 {[%clk 0:02:26.8]} 18.
Qd5 {[%clk 0:02:05.9]} 18... Re5 {[%clk 0:01:44.2]} 19. Nxd7 {[%clk 0:00:29.9]}
19... Rxd5 {[%clk 0:01:39.6]} 20. Nxb8 {[%clk 0:00:30.9]} 20... Bxh3 {[%clk
0:01:09.3]} 21. cxd5 {[%clk 0:00:26.3]} 21... Bxf1 {[%clk 0:01:05.9]} 22. Kxf1
{[%clk 0:00:19]} 22... Qxb8 {[%clk 0:01:06]} 23. Rd1 {[%clk 0:00:19.9]} 23...
Bd6 {[%clk 0:01:00.5]} 24. Nd4 {[%clk 0:00:20.2]} 24... Kf8 {[%clk 0:00:53.6]}
25. Nc6 {[%clk 0:00:21]} 25... Qb5+ {[%clk 0:00:54.2]} 26. Kg1 {[%clk
0:00:20.4]} 26... Qe2 {[%clk 0:00:54]} 27. Rd2 {[%clk 0:00:20.8]} 27... Qb5
{[%clk 0:00:48.2]} 28. Bd4 {[%clk 0:00:18.6]} 28... Ke8 {[%clk 0:00:42.6]} 29.
Be5 {[%clk 0:00:19.7]} 29... Kd7 {[%clk 0:00:39.2]} 30. Bxd6 {[%clk 0:00:09.7]}
30... Kxd6 {[%clk 0:00:40.2]} 31. Rd4 {[%clk 0:00:10.4]} 31... a5 {[%clk
0:00:36.6]} 32. Rd2 {[%clk 0:00:11.3]} 32... Qc5 {[%clk 0:00:36.5]} 33. Kf1
{[%clk 0:00:08.3]} 33... h5 {[%clk 0:00:30]} 34. Nd4 {[%clk 0:00:06.2]} 34...
Qc1+ {[%clk 0:00:27]} 35. Ke2 {[%clk 0:00:06.7]} 35... Kxd5 {[%clk 0:00:26.5]}
0-1